bitfinex/quotes_ETHUSD_20251226
["timestamp","ask_amount","ask_price","bid_price","bid_amount"]
[1766741445417,1e-08,2967.6,2967.5,0.86741884]
[1766741448016,1e-08,2967.6,2967.5,0.13485199]
[1766741448442,0.002,2967.8,2967.6,0.9725]
[1766741448443,1e-08,2967.8,2967.6,0.9725]
[1766741448737,1e-08,2967.9,2967.6,0.9725]
[1766741448934,1e-08,2967.9,2967.7,0.9725]
[1766741449131,0.9373,2968.2,2967.7,0.9725]
[1766741449132,0.002,2968.2,2967.8,0.03369499]
[1766741449312,0.9353,2968.1,2967.7,0.91769612]
[1766741449512,0.9353,2968.1,2967.5,4.25482661]
[1766741449718,0.9353,2968.1,2967.5,1.68918451]
[1766741449927,0.9353,2968.1,2967.5,2.62448451]
[1766741450110,0.9353,2968.1,2967.5,1.68918451]
[1766741450307,0.9353,2968.0,2967.5,1.68918451]
[1766741451014,0.9353,2968.0,2967.5,2.66021661]
[1766741451215,0.9353,2968.0,2967.6,0.60301701]
[1766741453049,0.9353,2967.8,2966.9,0.00096777]
[1766741453344,0.9353,2967.5,2966.9,0.00096777]
[1766741453513,0.9353,2967.3,2966.9,0.00096777]
[1766741453936,0.9690321,2967.3,2966.9,0.00096777]
[1766741458547,0.9353,2967.3,2966.9,0.00096777]
[1766741458849,1.01158091,2967.2,2966.9,0.00096777]
[1766741463870,0.0337321,2967.1,2966.7,0.306]
[1766741464434,0.0337321,2967.1,2966.6,0.001]
[1766741464435,0.885,2967.0,2966.6,0.001]
[1766741472571,0.885,2967.0,2966.6,0.03470862]
[1766741473071,0.885,2967.0,2966.6,3.40552864]
[1766741476470,0.885,2967.0,2966.6,6.7763909]
[1766741476777,0.0357321,2967.5,2966.7,0.76623909]
[1766741476956,0.002,2967.5,2966.8,0.03370635]
[1766741477148,0.0357321,2967.5,2966.8,0.03370635]
[1766741477472,1.01158091,2967.4,2966.8,0.03370635]
[1766741480449,1.01358091,2967.4,2966.8,0.03370635]
[1766741481047,0.002,2967.4,2966.8,0.03370635]
[1766741481251,1.01158091,2967.3,2966.8,0.03370635]
[1766741481459,1.01158091,2967.3,2966.8,3.40432623]
[1766741484386,1.01158091,2967.3,2966.8,6.77496125]
[1766741484559,1.01158091,2967.3,2966.8,4.25971456]
[1766741485881,1.01158091,2967.3,2966.8,3.40432623]
[1766741488481,1.01358091,2967.3,2966.8,3.40432623]
[1766741491090,1.01358091,2967.3,2966.8,0.03370635]
[1766741491264,1.01358091,2967.3,2966.7,3.37069265]
[1766741492791,1.01358091,2967.3,2966.8,3.3706323]
[1766741494096,0.002,2967.3,2966.6,6.74270493]
[1766741494260,0.002,2967.3,2966.7,0.03370748]
[1766741496295,0.002,2967.3,2966.8,3.37063502]
[1766741496592,0.002,2967.3,2966.9,0.03370521]
[1766741497695,0.002,2967.3,2966.9,3.4041877]
[1766741501200,0.002,2967.3,2966.9,0.03370521]
[1766741502201,0.002,2967.3,2966.9,3.40422076]
[1766741503100,0.002,2967.3,2966.9,0.03370521]
[1766741503801,0.002,2967.3,2966.9,3.40422037]
[1766741513005,0.002,2967.3,2966.9,3.40522037]
[1766741516698,0.002,2967.3,2966.9,6.77574178]
[1766741516897,0.002,2967.3,2966.9,4.08289455]
[1766741522527,0.002,2967.3,2966.9,4.04918934]
[1766741523316,0.002,2967.3,2966.9,0.001]
[1766741527252,0.002,2967.3,2966.9,0.03470521]
[1766741529317,0.002,2967.3,2966.9,3.40520508]
[1766741533750,0.002,2967.3,2966.9,3.37149987]
[1766741534124,0.002,2967.3,2966.9,0.001]
[1766741534442,0.9333,2967.2,2966.9,0.001]
[1766741545933,0.9353,2967.2,2966.9,0.001]
[1766741554085,0.9333,2967.0,2966.9,0.001]
[1766741554451,0.9333,2967.0,2966.7,4.25569249]
[1766741555072,0.9333,2967.0,2966.7,0.885]
[1766741556668,0.9333,2967.0,2966.6,3.37185481]
[1766741557455,0.9333,2967.0,2966.6,0.001]
[1766741559473,0.9333,2967.0,2966.6,0.95705599]
[1766741559969,0.9333,2967.0,2966.7,3.37074864]
[1766741560574,0.9353,2967.2,2966.8,0.03370635]
[1766741561602,0.002,2968.0,2967.1,0.99830814]
[1766741561877,0.9353,2968.0,2967.3,0.9781]
[1766741562075,0.9353,2968.0,2967.5,3.36983993]
[1766741562376,0.9353,2968.0,2967.6,0.03369726]
[1766741563781,0.002,2968.0,2967.7,0.9801]
[1766741564752,0.002,2968.0,2967.7,4.34969048]
[1766741565166,0.002,2968.0,2967.8,0.03369499]
[1766741566980,0.002,2968.0,2967.6,3.80785014]
[1766741567155,0.002,2968.0,2967.6,3.94268349]
[1766741567354,0.002,2968.0,2967.7,0.73125146]
[1766741569479,0.002,2968.0,2967.7,4.10084914]
[1766741569785,0.002,2968.0,2967.7,0.73125146]
[1766741569978,0.002,2968.0,2967.6,0.13483335]
[1766741570757,0.002,2968.0,2967.6,3.50454538]
[1766741570957,0.002,2968.0,2967.7,3.36959135]
[1766741571577,0.002,2968.0,2967.7,6.73920418]
[1766741571882,0.002,2968.0,2967.7,3.36959135]
[1766741572063,0.002,2968.0,2967.8,0.68741203]
[1766741573385,0.002,2968.0,2967.8,4.05684451]
[1766741574967,0.002,2968.0,2967.8,0.68741203]
[1766741575385,0.002,2968.0,2967.8,4.0568477]
[1766741575576,0.002,2968.0,2967.8,0.68741203]
[1766741576285,0.002,2968.0,2967.8,4.0568781]
[1766741577166,0.002,2968.0,2967.8,0.68741203]
[1766741577952,0.002,2968.0,2967.6,3.36969463]
[1766741578158,0.002,2968.0,2967.7,0.1348338]
[1766741578484,0.002,2968.0,2967.8,3.36948943]
[1766741580478,0.002,2968.0,2967.7,3.36956473]
[1766741580985,0.002,2968.0,2967.7,6.73917756]
[1766741581183,0.002,2968.0,2967.7,7.4266787]
[1766741581390,0.002,2968.0,2967.7,4.19189967]
[1766741582688,0.002,2968.0,2967.7,0.68750114]
[1766741582991,0.002,2968.0,2967.5,3.50560956]
[1766741583764,0.002,2968.0,2967.6,3.36971855]
[1766741586290,0.002,2968.0,2967.5,3.37083993]
[1766741587990,0.002,2968.0,2967.5,0.001]
[1766741588288,0.002,2968.0,2967.5,0.13584017]
[1766741590795,0.002,2968.0,2967.5,6.87543209]
[1766741590983,0.002,2968.0,2967.5,7.56499611]
[1766741591867,0.002,2968.0,2967.5,4.19515618]
[1766741592279,0.002,2968.0,2967.5,7.56499611]
[1766741593405,0.002,2968.0,2967.6,0.03369726]
[1766741595683,0.002,2968.0,2967.6,3.40331655]
[1766741596300,0.002,2968.0,2967.6,4.16316382]
[1766741596985,0.002,2968.0,2967.6,7.53289019]
[1766741597183,0.002,2968.0,2967.6,7.49919293]
[1766741597384,0.002,2968.0,2967.7,0.03369612]
[1766741598109,0.002,2968.0,2967.7,3.40326279]
[1766741598419,0.002,2968.0,2967.7,4.5070917]
[1766741602720,0.002,2968.0,2967.7,7.87670453]
[1766741602890,0.002,2968.0,2967.7,7.84300841]
[1766741603097,0.002,2968.0,2967.8,0.03369499]
[1766741603819,0.002,2968.4,2967.8,0.03369499]
[1766741604010,0.002,2968.4,2967.9,4.75431764]
[1766741604215,0.002,2968.4,2968.0,0.03369272]
[1766741604408,0.002,2968.4,2968.0,0.05390086]
[1766741604789,0.002,2968.4,2968.1,6.73831744]
[1766741605002,3.56739295,2969.7,2968.2,0.05389859]
[1766741605215,1.01880518,2969.5,2968.3,4.6640688]
[1766741605492,3.9666473,2969.4,2968.4,0.03368818]
[1766741606922,0.884,2969.5,2968.5,3.36870473]
[1766741607131,0.884,2969.5,2968.6,0.03368591]
[1766741607318,0.884,2969.5,2968.5,7.62140946]
[1766741607488,0.884,2969.5,2968.6,0.49674616]
[1766741610645,0.884,2969.5,2968.7,3.36847778]
[1766741614041,0.884,2969.5,2968.8,0.03368364]
[1766741618852,0.884,2969.5,2968.7,0.03368477]
[1766741619020,0.884,2969.5,2968.7,0.84885202]
[1766741619722,3.9666473,2969.4,2968.7,0.81516725]
[1766741619933,3.9666473,2969.4,2968.6,0.49674616]
[1766741621558,0.884,2969.5,2968.6,0.49674616]
[1766741621750,3.9666473,2969.4,2968.6,0.49674616]
[1766741623460,3.9666473,2969.4,2968.7,0.03368477]
[1766741623753,0.884,2969.5,2968.7,3.40214438]
[1766741627326,0.884,2969.9,2968.7,6.77062216]
[1766741627523,4.8506473,2969.9,2968.7,7.30278742]
[1766741627824,4.8506473,2969.9,2968.8,1.17661809]
[1766741628026,4.8506473,2969.9,2968.9,3.40193336]
[1766741633064,3.9666473,2969.7,2968.9,0.0336825]
[1766741633266,3.9686473,2969.0,2967.6,0.001]
[1766741633569,0.0336825,2968.9,2968.0,4.3802787]
[1766741633758,0.0336825,2968.9,2968.1,3.89547824]
[1766741633948,0.0336825,2968.9,2968.2,3.36900428]
[1766741635666,0.0336825,2968.9,2968.0,1.01104226]
[1766741635667,3.9666473,2968.6,2968.0,1.01104226]
[1766741635844,4.36331203,2968.6,2967.9,3.36937282]
[1766741636048,3.9666473,2968.6,2967.9,3.36937282]
[1766741636360,3.9666473,2968.8,2967.9,3.36937282]
[1766741636536,0.0336825,2968.7,2967.9,3.36937282]
[1766741637164,0.0336825,2968.7,2968.0,3.36925551]
[1766741637539,0.0336825,2968.7,2968.1,0.001]
[1766741637838,0.0336825,2968.9,2968.1,0.001]
[1766741638038,0.43391548,2968.9,2968.1,0.001]
[1766741639070,0.0336825,2968.9,2968.1,0.001]
[1766741639280,0.002,2969.0,2968.1,0.001]
[1766741639479,0.0356825,2969.0,2968.1,0.001]
[1766741639982,0.0356825,2969.0,2968.1,0.03469158]
[1766741642980,0.0356825,2969.0,2968.1,3.40374133]
[1766741643171,0.0356825,2969.0,2968.2,0.67730136]
[1766741643373,0.0356825,2969.0,2968.3,0.03368931]
[1766741645288,0.002,2969.0,2968.3,3.36892323]
[1766741645445,0.002,2969.0,2968.4,0.03368818]
[1766741645653,0.002,2969.0,2968.2,0.67730136]
[1766741645877,0.002,2969.0,2968.3,0.43841846]
[1766741646176,0.002,2969.0,2968.3,3.40260126]
[1766741647181,0.002,2969.0,2968.3,0.03368931]
[1766741647870,0.002,2969.0,2968.2,3.36899175]
[1766741649477,0.002,2969.0,2968.1,3.37015872]
[1766741649683,0.002,2969.0,2968.2,0.03369045]
[1766741649980,0.002,2969.0,2968.3,0.67730079]
[1766741650182,0.002,2969.0,2968.4,0.03368818]
[1766741650988,0.002,2969.0,2968.4,4.00033548]
[1766741651378,0.002,2969.0,2968.5,3.36870473]
[1766741651577,0.002,2969.0,2968.6,0.03368591]
[1766741651778,0.002,2969.0,2968.6,0.37392497]
[1766741652892,0.002,2969.0,2968.6,0.34023906]
[1766741653889,0.002,2969.0,2968.6,3.70879009]
[1766741654086,0.002,2969.0,2968.7,0.03368477]
[1766741655262,0.002,2969.0,2968.6,3.70879009]
[1766741655461,0.002,2969.0,2968.7,0.37087901]
[1766741660190,0.002,2969.0,2968.5,3.3686536]
[1766741661001,0.002,2969.0,2968.4,3.36876522]
[1766741661694,0.002,2969.0,2968.4,3.36881821]
[1766741662082,0.002,2969.0,2968.4,6.73763642]
[1766741666805,0.002,2969.2,2968.5,0.05389518]
[1766741667111,0.002,2969.2,2968.7,0.02020814]
[1766741667303,0.002,2969.2,2968.8,0.03368364]
[1766741667504,0.9176825,2969.9,2968.8,0.03368364]
[1766741667819,0.884,2969.9,2969.0,6.73627484]
[1766741668108,0.884,2969.9,2969.1,0.03368023]
[1766741670576,0.884,2969.9,2969.2,6.73582108]
[1766741670783,0.884,2969.9,2969.3,0.03367797]
[1766741670993,0.884,2969.9,2969.3,0.71062788]
[1766741672003,0.0356825,2970.2,2969.3,0.71062788]
[1766741672606,0.0356825,2970.2,2969.4,3.3676837]
[1766741672891,0.0356825,2970.2,2969.5,0.0336757]
[1766741673087,7.60421594,2971.8,2969.4,7.63957554]
[1766741673088,0.0336825,2970.5,2969.4,7.63957554]
[1766741673315,0.22077116,2971.2,2969.6,0.02020814]
[1766741673316,0.002,2969.9,2969.6,0.02020814]
[1766741673516,0.002,2969.9,2969.6,1.03067148]
[1766741674590,0.002,2969.9,2969.7,6.734687]
[1766741674793,0.002,2969.9,2969.8,0.77653585]
[1766741675486,0.002,2969.9,2969.5,3.77199132]
[1766741675710,0.002,2969.9,2969.6,3.36745343]
[1766741677337,0.002,2969.9,2969.7,0.03367343]
[1766741679333,0.002,2969.9,2969.8,3.36723011]
[1766741686640,0.002,2969.9,2969.7,6.73468113]
[1766741686841,0.002,2969.9,2969.8,0.79554041]
[1766741688641,0.002,2969.9,2969.8,4.12909822]
[1766741690742,0.002,2969.9,2969.8,4.16277052]
[1766741691840,0.002,2969.9,2969.8,4.12909822]
[1766741693348,0.002,2969.9,2969.8,4.16277052]
[1766741697650,0.002,2969.9,2969.8,4.12909822]
[1766741699050,0.002,2969.9,2969.8,4.16277052]
[1766741701352,0.002,2969.9,2969.8,0.79554041]
[1766741701527,0.002,2969.9,2969.6,3.36735937]
[1766741701722,0.002,2969.9,2969.5,0.40546336]
[1766741701956,0.002,2969.9,2969.5,0.885]
[1766741702125,0.002,2969.9,2969.5,0.001]
[1766741702449,0.002,2969.9,2969.0,1.01071186]
[1766741702650,3.96671829,2969.9,2968.9,3.36816344]
[1766741702964,0.43035433,2969.8,2969.0,0.03368137]
[1766741703156,0.0336825,2969.8,2968.8,0.03368364]
[1766741703459,0.002,2969.9,2968.8,0.03368364]
[1766741703652,0.0356825,2969.9,2968.9,6.73650135]
[1766741703855,0.002,2969.9,2969.8,0.001]
[1766741704027,0.0356825,2969.9,2969.0,0.03368137]
[1766741704231,0.002,2969.9,2969.0,0.03368137]
[1766741704429,0.0356825,2969.9,2969.0,0.03368137]
[1766741704630,0.002,2969.9,2969.0,0.03368137]
[1766741704832,0.0356825,2969.9,2969.0,0.03368137]
[1766741705031,0.0356825,2969.9,2969.0,0.71069964]
[1766741705032,0.002,2969.9,2969.0,0.71069964]
[1766741705556,0.002,2969.9,2969.0,0.73090778]
[1766741706859,0.002,2969.9,2969.1,3.36802398]
[1766741707048,0.002,2969.9,2969.2,0.0336791]
[1766741708361,0.9842,2969.9,2969.2,1.0064791]
[1766741708562,0.9842,2969.9,2969.2,1.85046574]
[1766741708956,0.9842,2969.9,2969.3,0.9728]
[1766741709171,0.9842,2969.9,2969.4,0.03367683]
[1766741709935,0.0336825,2969.8,2969.4,0.03367683]
[1766741712262,0.9842,2969.9,2969.4,0.03367683]
[1766741712561,0.9842,2969.9,2969.4,1.00647683]
[1766741714064,0.0336825,2969.8,2969.4,1.00647683]
[1766741718185,0.9322,2970.2,2969.5,0.9802]
[1766741718363,0.9322,2970.5,2969.7,0.9802]
[1766741718684,0.002,2970.6,2969.7,0.9802]
[1766741719585,0.9342,2970.6,2969.7,0.9802]
[1766741720559,0.9342,2970.6,2969.8,3.36723011]
[1766741720759,0.9342,2970.6,2970.0,0.9802]
[1766741721784,0.002,2970.6,2970.2,0.9802]
[1766741722759,0.002,2970.6,2970.3,0.9802]
[1766741722960,0.002,2970.6,2970.4,0.03366549]
[1766741723258,0.002,2970.6,2970.4,0.80840195]
[1766741724304,0.9322,2970.9,2970.4,1.75493646]
[1766741725165,0.9322,2970.9,2970.2,0.9322]
[1766741725517,0.9322,2970.9,2970.0,0.9802]
[1766741725518,0.9322,2970.9,2970.1,3.36688274]
[1766741725670,0.9322,2970.9,2970.1,4.34708274]
[1766741727597,0.9322,2970.9,2970.2,0.9802]
[1766741728595,0.9322,2970.8,2970.0,3.36699576]
[1766741728889,0.9322,2970.8,2969.9,0.9802]
[1766741728890,0.9322,2970.8,2969.9,4.3472621]
[1766741729390,0.9322,2970.8,2970.0,3.36699443]
[1766741731094,3.96020108,2970.2,2969.7,1.01043952]
[1766741731294,3.96020108,2970.2,2969.4,0.9802]
[1766741731295,0.9322,2970.1,2969.6,0.03367456]
[1766741731598,0.9322,2970.1,2969.6,3.40111596]
[1766741732891,0.9322,2970.1,2969.6,4.38131596]
[1766741733199,1.8162,2970.3,2969.6,4.38131596]
[1766741733397,1.8162,2970.3,2969.6,5.55222259]
[1766741734874,1.8162,2970.3,2969.7,0.9802]
[1766741735174,1.8162,2970.3,2969.8,0.0336723]
[1766741736372,1.8162,2970.3,2969.7,4.34754145]
[1766741738395,0.884,2970.5,2969.8,0.9802]
[1766741738601,0.9322,2970.4,2969.8,0.9802]
[1766741744409,0.9322,2970.4,2969.9,0.9454]
[1766741744614,0.886,2970.6,2970.1,0.9454]
[1766741744786,1.07195,2970.6,2970.1,0.9454]
[1766741746411,0.886,2970.6,2970.2,0.03366776]
[1766741746713,0.886,2970.6,2970.1,0.9454]
[1766741747011,1.8595,2970.6,2970.1,0.9454]
[1766741747509,0.002,2970.4,2970.1,0.9454]
[1766741752508,0.002,2970.4,2970.0,3.36694787]
[1766741752697,0.002,2970.4,2970.0,4.04036387]
[1766741762126,0.002,2970.4,2970.0,0.673416]
[1766741762325,0.002,2970.4,2969.7,7.20731566]
[1766741762530,0.002,2970.4,2969.8,3.36711843]
[1766741765149,0.002,2970.4,2969.8,3.36811843]
[1766741765347,0.002,2970.4,2969.8,0.001]
[1766741765958,0.39842011,2970.4,2969.8,0.001]
[1766741766961,0.39842011,2970.4,2969.8,3.40183948]
[1766741767259,0.002,2970.4,2969.8,3.36816718]
[1766741768550,0.002,2970.4,2969.8,6.73539729]
[1766741768948,0.002,2970.4,2970.1,3.36689]
[1766741771087,0.002,2970.4,2969.9,6.73423346]
[1766741772178,0.002,2970.4,2969.9,3.36711673]
[1766741773051,0.002,2970.4,2970.0,0.67352682]
[1766741775094,0.002,2970.4,2970.0,4.04046661]
[1766741775270,0.002,2970.4,2970.0,0.67352682]
[1766741776467,0.002,2970.4,2969.9,3.36706414]
[1766741776468,0.002,2970.4,2969.9,3.3670081]
[1766741776663,0.002,2970.4,2970.0,0.03367003]
[1766741776992,0.002,2970.4,2970.0,3.40066819]
[1766741777890,0.002,2970.4,2970.0,0.03367003]
[1766741778770,0.002,2970.4,2970.0,3.40062389]
[1766741779463,0.002,2970.4,2970.0,4.07750541]
[1766741779771,0.002,2970.4,2970.0,7.41083874]
[1766741780995,0.002,2970.4,2970.1,0.0336689]
[1766741781397,1e-08,2970.6,2970.2,6.73355328]
[1766741781591,1e-08,2970.6,2970.3,0.71038885]
[1766741782094,1e-08,2970.6,2970.3,0.67672222]
[1766741783475,1e-08,2970.6,2970.3,3.36665412]
[1766741785996,1e-08,2970.6,2970.2,3.36675049]
[1766741787903,1e-08,2970.6,2970.3,0.001]
[1766741794120,0.002,2970.9,2970.3,0.001]
[1766741794292,0.002,2970.9,2970.3,0.03466663]
[1766741794492,0.002,2970.9,2970.3,1.04819924]
[1766741794894,0.002,2970.9,2970.3,1.01453261]
[1766741796221,0.002,2970.9,2970.4,3.36654995]
[1766741796835,0.002,2970.6,2970.4,3.36654995]
[1766741797198,0.002,2970.6,2970.3,0.001]
[1766741798299,0.002,2970.6,2969.9,3.97472526]
[1766741798609,0.48659708,2970.6,2969.9,3.97472526]
[1766741799014,0.48659708,2970.6,2969.9,3.84]
[1766741799203,0.002,2970.6,2969.9,7.20711128]
[1766741800030,0.002,2970.6,2969.9,3.84]
[1766741802038,3.95997081,2970.4,2969.6,1.01154163]
[1766741802203,0.39599708,2970.3,2969.6,0.001]
[1766741802531,0.884,2970.2,2969.6,0.001]
[1766741804823,0.884,2970.2,2969.9,0.001]
[1766741807633,0.002,2970.6,2969.9,0.001]
[1766741807837,1.61682228,2970.5,2969.9,0.001]
[1766741808131,0.73282228,2970.5,2969.9,0.001]
[1766741808341,0.884,2970.4,2969.9,0.001]
[1766741808538,0.73282228,2970.5,2969.9,0.001]
[1766741808712,0.884,2970.4,2969.9,0.001]
[1766741810141,0.73282228,2970.5,2969.9,0.001]
[1766741810439,0.884,2970.4,2969.9,0.001]
[1766741826353,0.886,2970.4,2969.9,0.001]
[1766741828526,0.886,2970.4,2969.9,0.03467116]
[1766741828732,0.002,2970.4,2969.9,0.03467116]
[1766741829038,0.002,2970.9,2970.0,0.884]
[1766741829246,0.002,2970.9,2970.1,0.5215331]
[1766741829578,0.002,2970.9,2970.1,0.74230426]
[1766741829734,0.002,2970.9,2970.1,0.5215331]
[1766741829934,0.002,2970.9,2970.2,0.22077116]
[1766741830243,0.002,2970.9,2970.4,3.36654995]
[1766741830439,0.002,2971.6,2970.8,0.02020814]
[1766741830667,0.002,2971.6,2970.9,0.03365983]
[1766741830864,0.002,2971.6,2970.9,0.13468036]
[1766741831169,0.002,2971.6,2970.5,0.02020814]
[1766741831480,0.002,2971.6,2970.6,0.884]
[1766741832067,0.002,2971.6,2970.7,0.03366209]
[1766741832246,0.002,2971.6,2970.8,3.36609667]
[1766741832444,0.002,2971.6,2970.9,0.03365983]
[1766741832679,0.002,2971.6,2970.7,3.36618149]
[1766741832882,0.002,2971.6,2970.7,4.24174289]
[1766741833378,0.002,2971.6,2970.7,0.8755614]
[1766741833576,0.002,2971.6,2970.6,4.25029834]
[1766741834866,0.002,2971.6,2970.6,7.61662164]
[1766741835082,0.002,2971.6,2970.6,4.25029834]
[1766741836276,0.002,2971.6,2970.2,0.02020814]
[1766741836480,0.39619708,2971.5,2970.2,0.02020814]
[1766741836777,0.39619708,2971.5,2970.6,3.36630322]
[1766741837275,0.39619708,2971.5,2970.7,0.03366209]
[1766741837474,0.002,2971.6,2970.6,3.36630322]
[1766741837678,0.002,2971.6,2970.5,0.02020814]
[1766741837874,0.002,2971.6,2970.6,3.3662977]
[1766741838886,0.002,2971.6,2970.5,6.73287038]
[1766741839065,0.002,2971.6,2970.6,0.80798061]
[1766741841287,0.002,2971.6,2970.7,3.36620998]
[1766741842380,0.002,2971.6,2970.5,4.37668953]
[1766741842381,0.002,2971.6,2970.5,1.01025577]
[1766741842583,0.002,2971.6,2970.6,0.03366323]
[1766741842768,0.7348952,2971.6,2970.5,3.39999658]
[1766741843358,0.7348952,2971.6,2970.6,3.36631839]
[1766741843561,0.7348952,2971.6,2970.5,3.4000384]
[1766741844190,3.95926982,2971.5,2970.5,3.4000384]
[1766741844388,4.76520115,2971.5,2970.5,4.07669706]
[1766741845185,0.80593133,2971.5,2970.5,4.07669706]
[1766741845490,4.76520115,2971.5,2970.5,4.07669706]
[1766741847202,4.76520115,2971.5,2970.5,0.03366436]
[1766741847395,4.76520115,2971.5,2970.5,3.40009958]
[1766741848607,4.76720115,2971.5,2970.5,3.40009958]
[1766741849804,0.80793133,2971.5,2970.5,6.7665362]
[1766741850102,0.002,2971.5,2970.5,6.7665362]
[1766741851004,0.002,2971.5,2970.5,6.73287184]
[1766741851909,0.002,2971.5,2970.5,6.7665362]
[1766741853229,0.002,2971.5,2970.5,6.73287184]
[1766741855702,0.002,2971.5,2970.6,0.03366323]
[1766741855909,0.002,2971.5,2970.6,0.81336585]
[1766741857688,0.002,2971.5,2970.7,3.36620998]
[1766741858008,0.002,2971.5,2970.8,0.03366096]
[1766741858309,0.002,2971.5,2970.7,3.36620998]
[1766741858995,0.002,2971.5,2970.8,0.03366096]
[1766741859910,0.002,2971.5,2970.9,3.36598337]
[1766741860916,0.002,2971.5,2970.8,3.39971278]
[1766741863921,0.002,2971.5,2970.7,3.36615868]
[1766741864086,0.002,2971.5,2970.8,3.36608302]
[1766741864488,0.002,2971.5,2970.6,4.14699108]
[1766741864489,0.002,2971.5,2970.7,3.36615122]
[1766741864806,0.002,2971.5,2970.7,3.78095033]
[1766741866317,3.96126982,2971.5,2970.7,0.41479911]
[1766741866485,3.96126982,2971.5,2970.6,0.001]
[1766741867800,0.883,2971.4,2970.6,0.001]
[1766741870823,3.95926982,2971.1,2970.6,0.001]
[1766741871029,3.95926982,2970.7,2969.9,0.001]
[1766741871199,3.95926982,2970.5,2969.9,0.001]
[1766741871393,0.883,2970.6,2969.9,3.36811208]
[1766741872029,0.883,2970.6,2969.9,0.001]
[1766741872201,1.36722698,2970.6,2969.9,0.001]
[1766741872823,1.36722698,2970.6,2969.8,0.001]
[1766741877423,3.95926982,2970.3,2969.8,0.001]
[1766741880728,4.24936667,2970.6,2969.8,0.001]
[1766741880933,3.95926982,2970.4,2969.8,0.001]
[1766741881420,0.883,2970.6,2969.8,0.001]
[1766741881421,4.84226982,2970.6,2969.8,0.001]
[1766741881621,0.82085803,2970.5,2969.8,0.001]
[1766741885444,3.95926982,2970.3,2969.8,0.001]
[1766741889219,4.78012785,2970.5,2969.8,0.001]
[1766741890442,0.884,2970.4,2969.8,0.001]
[1766741891542,0.002,2970.6,2969.8,0.001]
[1766741891843,0.884,2970.5,2969.8,0.001]
[1766741896450,0.884,2970.4,2969.8,0.001]
[1766741897250,0.884,2970.4,2969.8,0.40049444]
[1766741897441,0.884,2970.4,2969.9,0.03367116]
[1766741897956,0.884,2970.4,2969.9,3.40071107]
[1766741899025,0.884,2970.4,2969.8,0.40049444]
[1766741899026,0.884,2970.4,2969.8,3.7677106]
[1766741900724,0.884,2970.4,2969.8,0.40049444]
[1766741901557,0.884,2970.4,2969.8,0.001]
[1766741902929,3.95926982,2970.3,2969.8,0.001]
[1766741903134,3.95926982,2970.1,2969.6,0.001]
[1766741903961,8.21352448,2970.4,2969.6,0.001]
[1766741904137,0.82135245,2970.3,2969.6,0.001]
[1766741904826,0.82135245,2970.3,2969.8,0.001]
[1766741905028,4.18801597,2970.3,2969.6,0.001]
[1766741905260,3.96295162,2970.1,2969.5,0.001]
[1766741907836,4.18806497,2970.3,2969.5,0.001]
[1766741908035,0.50739347,2970.2,2969.5,0.001]
[1766741909946,3.96295162,2970.1,2969.4,0.001]
[1766741911975,7.3298645,2970.1,2969.4,0.001]
[1766741912179,0.7837258,2970.0,2969.4,0.001]
[1766741912350,0.884,2969.9,2969.5,0.001]
[1766741915069,0.884,2969.9,2969.3,0.001]
[1766741915966,4.25112164,2969.9,2969.3,0.001]
[1766741916270,0.50348474,2969.8,2969.3,0.001]
[1766741919653,0.50548474,2969.8,2969.3,0.001]
[1766741922773,0.50548474,2969.8,2969.3,0.9018]
[1766741926092,0.884,2969.7,2969.1,0.001]
[1766741926293,0.884,2969.7,2969.2,0.9852]
[1766741928209,0.884,2969.7,2969.3,0.001]
[1766741935307,0.886,2969.7,2969.3,0.001]
[1766741937922,0.002,2969.7,2969.3,0.001]
[1766741938124,0.884,2969.6,2969.3,0.001]
[1766741939600,0.884,2969.6,2969.0,0.001]
[1766741939925,0.48489516,2969.5,2969.0,0.001]
[1766741940508,0.884,2969.6,2969.0,0.001]
[1766741940913,0.002,2969.7,2969.0,0.001]
[1766741941133,0.884,2969.6,2969.0,0.001]
[1766741944826,0.884,2969.5,2969.0,0.001]
[1766741945846,0.884,2969.4,2969.0,0.001]
[1766741951334,0.886,2969.4,2969.0,0.001]
[1766741975985,3.96405291,2969.1,2968.2,0.001]
[1766741976186,3.96405291,2968.9,2968.2,0.001]
[1766741976362,0.884,2968.8,2968.2,0.001]
[1766741976557,0.884,2968.7,2968.2,0.001]
[1766741981706,0.886,2968.7,2968.2,0.001]
[1766741988300,0.002,2968.7,2968.2,0.001]
[1766741988502,0.884,2968.6,2968.2,0.001]
[1766741992605,0.884,2968.6,2968.2,0.03469045]
[1766741994015,0.884,2968.6,2968.3,3.36993171]
[1766741996021,0.884,2968.6,2968.3,0.001]
[1766741996523,0.886,2968.6,2968.3,0.001]
[1766741998124,0.002,2968.6,2968.3,0.001]
[1766741998307,0.002,2968.6,2968.3,4.39544751]
[1766742000723,0.002,2969.4,2968.4,3.36881821]
[1766742000929,0.884,2969.3,2968.5,3.99773995]
[1766742001522,0.884,2969.3,2968.5,0.03368704]
[1766742001716,0.42536051,2969.3,2968.5,0.03368704]
[1766742001924,0.884,2969.2,2968.5,3.99773995]
[1766742002229,0.884,2969.2,2968.5,3.96405291]
[1766742002800,0.884,2969.2,2968.6,6.7371825]
[1766742004500,0.002,2969.4,2968.6,6.7371825]
[1766742004729,0.884,2969.3,2968.6,7.80730604]
[1766742004929,0.002,2969.7,2969.2,3.96405291]
[1766742005230,0.884,2969.6,2969.0,3.96405291]